[Event "Early-Titled-Tuesday-Blitz-April-16-2024"]
[Site "Chess.com"]
[Date "2024.04.16"]
[Round "5"]
[White "NasirAkylbekov"]
[Black "Sasha_Solovev_777"]
[Result "1-0"]
[WhiteElo "2457"]
[BlackElo "2188"]
[TimeControl "180+1"]
[EndTime "8:55:57 PDT"]
[Termination "NasirAkylbekov won on time"]

1. e4 {[%clk 0:03:00.4]} 1... c5 {[%clk 0:02:58.4]} 2. Nf3 {[%clk 0:03:00.3]}
2... d6 {[%clk 0:02:56.4]} 3. Nc3 {[%clk 0:03:00.8]} 3... Nf6 {[%clk 0:02:55.8]}
4. d4 {[%clk 0:03:01.4]} 4... cxd4 {[%clk 0:02:56.2]} 5. Nxd4 {[%clk 0:03:00.6]}
5... a6 {[%clk 0:02:56.1]} 6. Bc4 {[%clk 0:03:01]} 6... e6 {[%clk 0:02:55.6]} 7.
Be3 {[%clk 0:02:55.3]} 7... Be7 {[%clk 0:02:53.1]} 8. Bb3 {[%clk 0:02:54.6]}
8... b5 {[%clk 0:02:48.8]} 9. f3 {[%clk 0:02:53.7]} 9... Qc7 {[%clk 0:02:46.4]}
10. Qd2 {[%clk 0:02:52.6]} 10... Nc6 {[%clk 0:02:45.8]} 11. O-O-O {[%clk
0:02:52.4]} 11... O-O {[%clk 0:02:37.2]} 12. g4 {[%clk 0:02:50.9]} 12... Ne5
{[%clk 0:02:16.2]} 13. h4 {[%clk 0:02:44.2]} 13... Nc4 {[%clk 0:02:15.8]} 14.
Bxc4 {[%clk 0:02:43.3]} 14... bxc4 {[%clk 0:02:09.5]} 15. Rdg1 {[%clk
0:02:40.6]} 15... Rb8 {[%clk 0:02:04.5]} 16. h5 {[%clk 0:02:36.8]} 16... d5
{[%clk 0:01:40.2]} 17. e5 {[%clk 0:02:34.1]} 17... Nd7 {[%clk 0:01:35.8]} 18. f4
{[%clk 0:02:34.3]} 18... Bb4 {[%clk 0:01:21.5]} 19. g5 {[%clk 0:02:30]} 19...
Nc5 {[%clk 0:01:20.5]} 20. Nde2 {[%clk 0:02:20]} 20... Ne4 {[%clk 0:01:01.3]}
21. Qd1 {[%clk 0:02:16.9]} 21... Bxc3 {[%clk 0:00:57.4]} 22. Nxc3 {[%clk
0:02:11.4]} 22... Nxc3 {[%clk 0:00:55.1]} 23. bxc3 {[%clk 0:02:11.2]} 23... Qa5
{[%clk 0:00:47.5]} 24. Bd4 {[%clk 0:02:07.3]} 24... Bd7 {[%clk 0:00:42]} 25. Kd2
{[%clk 0:01:55.2]} 25... Rb2 {[%clk 0:00:40.9]} 26. Qa1 {[%clk 0:01:48.5]} 26...
Rxa2 {[%clk 0:00:26.1]} 27. Qb1 {[%clk 0:01:48.1]} 27... Ra3 {[%clk 0:00:18.3]}
28. Qb2 {[%clk 0:01:27.1]} 28... Ra2 {[%clk 0:00:18]} 29. Qb1 {[%clk 0:01:27.4]}
29... Ra3 {[%clk 0:00:18.2]} 30. Qb7 {[%clk 0:01:25.3]} 30... Ba4 {[%clk
0:00:15.7]} 31. Qb2 {[%clk 0:01:20.7]} 31... Bxc2 {[%clk 0:00:14.3]} 32. Ra1
{[%clk 0:01:17.9]} 32... Rxa1 {[%clk 0:00:12.5]} 33. Rxa1 {[%clk 0:01:16.2]}
33... Ba4 {[%clk 0:00:12.3]} 34. Qa3 {[%clk 0:01:01.8]} 34... Qb5 {[%clk
0:00:12.4]} 35. Qxa4 {[%clk 0:00:53.8]} 35... Qb2+ {[%clk 0:00:12.5]} 36. Ke3
{[%clk 0:00:45.8]} 36... Qg2 {[%clk 0:00:11.3]} 37. Qd1 {[%clk 0:00:45.3]} 37...
Qe4+ {[%clk 0:00:10.1]} 38. Kd2 {[%clk 0:00:42.7]} 38... Qxf4+ {[%clk
0:00:08.6]} 39. Kc2 {[%clk 0:00:43.1]} 39... Qxg5 {[%clk 0:00:07.4]} 40. Qf3
{[%clk 0:00:40.6]} 1-0

[Event "Early-Titled-Tuesday-Blitz-April-16-2024"]
[Site "Chess.com"]
[Date "2024.04.16"]
[Round "5"]
[White "Alonmindlin"]
[Black "Nitzan_Steinberg"]
[Result "0-1"]
[WhiteElo "2681"]
[BlackElo "2902"]
[TimeControl "180+1"]
[EndTime "8:55:59 PDT"]
[Termination "Nitzan_Steinberg won by resignation"]

1. d4 {[%clk 0:03:00.9]} 1... Nf6 {[%clk 0:02:58.4]} 2. c4 {[%clk 0:03:00.7]}
2... e6 {[%clk 0:02:58.3]} 3. Nf3 {[%clk 0:02:59.8]} 3... Bb4+ {[%clk
0:02:58.3]} 4. Nc3 {[%clk 0:02:59.1]} 4... d5 {[%clk 0:02:56.6]} 5. e3 {[%clk
0:02:59.3]} 5... O-O {[%clk 0:02:54.6]} 6. Bd3 {[%clk 0:02:59.6]} 6... c5 {[%clk
0:02:53.3]} 7. O-O {[%clk 0:02:59.5]} 7... Nc6 {[%clk 0:02:50.4]} 8. a3 {[%clk
0:02:58]} 8... Bxc3 {[%clk 0:02:50]} 9. bxc3 {[%clk 0:02:58.9]} 9... dxc4 {[%clk
0:02:50.7]} 10. Bxc4 {[%clk 0:02:58.9]} 10... Qc7 {[%clk 0:02:50.9]} 11. h3
{[%clk 0:02:53.4]} 11... b6 {[%clk 0:02:43.7]} 12. Qe2 {[%clk 0:02:53]} 12...
Bb7 {[%clk 0:02:39.2]} 13. Bb2 {[%clk 0:02:53.1]} 13... Na5 {[%clk 0:02:34.9]}
14. Bd3 {[%clk 0:02:51.6]} 14... c4 {[%clk 0:02:29.7]} 15. Bc2 {[%clk
0:02:48.9]} 15... Be4 {[%clk 0:02:29.7]} 16. Bxe4 {[%clk 0:02:39.6]} 16... Nxe4
{[%clk 0:02:29.8]} 17. Ne5 {[%clk 0:02:40.1]} 17... b5 {[%clk 0:02:20.5]} 18.
Rad1 {[%clk 0:02:32.9]} 18... Nc6 {[%clk 0:02:15.9]} 19. Nxc6 {[%clk 0:02:18.8]}
19... Qxc6 {[%clk 0:02:16]} 20. Qe1 {[%clk 0:02:19.4]} 20... f5 {[%clk
0:01:51.4]} 21. f3 {[%clk 0:02:16.4]} 21... Nf6 {[%clk 0:01:51.6]} 22. Qh4
{[%clk 0:02:13.6]} 22... a5 {[%clk 0:01:48.9]} 23. Rde1 {[%clk 0:02:10.4]} 23...
b4 {[%clk 0:01:39.8]} 24. e4 {[%clk 0:02:09.4]} 24... Rab8 {[%clk 0:01:21.2]}
25. axb4 {[%clk 0:01:51.6]} 25... axb4 {[%clk 0:01:21.1]} 26. d5 {[%clk
0:01:45.9]} 26... exd5 {[%clk 0:01:15.5]} 27. exf5 {[%clk 0:01:39.2]} 27... Qb6+
{[%clk 0:01:01.9]} 28. Kh1 {[%clk 0:01:37.9]} 28... d4 {[%clk 0:01:02.3]} 29.
Re6 {[%clk 0:01:35.6]} 29... Qa7 {[%clk 0:00:57.7]} 30. Ra1 {[%clk 0:01:16.2]}
30... Qc5 {[%clk 0:00:52.8]} 31. cxb4 {[%clk 0:01:14.8]} 31... Qxf5 {[%clk
0:00:52.9]} 32. Re7 {[%clk 0:01:13.5]} 32... c3 {[%clk 0:00:48.2]} 33. Bc1
{[%clk 0:00:58]} 33... Rxb4 {[%clk 0:00:31.9]} 34. Raa7 {[%clk 0:00:42.7]} 34...
Rb1 {[%clk 0:00:23.2]} 35. Rxg7+ {[%clk 0:00:41.5]} 35... Kh8 {[%clk 0:00:23.7]}
36. Qh6 {[%clk 0:00:38.5]} 36... Re8 {[%clk 0:00:13.9]} 37. Rg5 {[%clk
0:00:20.6]} 37... Rxc1+ {[%clk 0:00:12.2]} 38. Kh2 {[%clk 0:00:19.3]} 38... Qf4+
{[%clk 0:00:12.4]} 0-1

[Event "Early-Titled-Tuesday-Blitz-April-16-2024"]
[Site "Chess.com"]
[Date "2024.04.16"]
[Round "5"]
[White "LegenDaDaDa"]
[Black "JACK_BAU3R"]
[Result "1-0"]
[WhiteElo "2281"]
[BlackElo "1990"]
[TimeControl "180+1"]
[EndTime "8:56:02 PDT"]
[Termination "LegenDaDaDa won on time"]

1. d4 {[%clk 0:03:00.9]} 1... d5 {[%clk 0:02:59.6]} 2. c4 {[%clk 0:02:59.5]}
2... e6 {[%clk 0:02:59.7]} 3. cxd5 {[%clk 0:02:57.5]} 3... exd5 {[%clk
0:03:00.5]} 4. Nc3 {[%clk 0:02:57.9]} 4... c6 {[%clk 0:03:00.6]} 5. Nf3 {[%clk
0:02:55.1]} 5... h6 {[%clk 0:02:59.3]} 6. Bf4 {[%clk 0:02:52.8]} 6... Bd6 {[%clk
0:02:59]} 7. Bxd6 {[%clk 0:02:50.8]} 7... Qxd6 {[%clk 0:02:59.9]} 8. e3 {[%clk
0:02:51.7]} 8... Bf5 {[%clk 0:03:00.2]} 9. Rc1 {[%clk 0:02:47.5]} 9... Nd7
{[%clk 0:02:57]} 10. Be2 {[%clk 0:02:45.9]} 10... Ngf6 {[%clk 0:02:54.8]} 11.
O-O {[%clk 0:02:44.2]} 11... O-O {[%clk 0:02:54.5]} 12. a3 {[%clk 0:02:43.4]}
12... Rfe8 {[%clk 0:02:50.6]} 13. b4 {[%clk 0:02:40.9]} 13... b5 {[%clk
0:02:49.8]} 14. Qb3 {[%clk 0:02:38.8]} 14... a5 {[%clk 0:02:43.8]} 15. bxa5
{[%clk 0:02:31.2]} 15... Rxa5 {[%clk 0:02:42.8]} 16. Qb4 {[%clk 0:02:29.8]}
16... Qxb4 {[%clk 0:02:30.5]} 17. axb4 {[%clk 0:02:30.7]} 17... Ra6 {[%clk
0:02:26.8]} 18. h3 {[%clk 0:02:27.8]} 18... Nb6 {[%clk 0:02:14.4]} 19. Ne5
{[%clk 0:02:23.7]} 19... Nc4 {[%clk 0:02:12.4]} 20. Rfd1 {[%clk 0:02:23.4]}
20... Nxe5 {[%clk 0:02:06.2]} 21. dxe5 {[%clk 0:02:24.3]} 21... Rxe5 {[%clk
0:02:07]} 22. Bf3 {[%clk 0:02:20.9]} 22... Ne4 {[%clk 0:02:06]} 23. Ne2 {[%clk
0:02:18.9]} 23... Bd7 {[%clk 0:02:01]} 24. Nd4 {[%clk 0:02:17.2]} 24... Nd6
{[%clk 0:01:54.1]} 25. Nb3 {[%clk 0:02:14.5]} 25... Nc4 {[%clk 0:01:49.7]} 26.
Nc5 {[%clk 0:02:14.6]} 26... Ra7 {[%clk 0:01:50.2]} 27. e4 {[%clk 0:02:12.4]}
27... Be6 {[%clk 0:01:41]} 28. exd5 {[%clk 0:02:08]} 28... Bxd5 {[%clk
0:01:41.9]} 29. Ra1 {[%clk 0:02:04.2]} 29... Rxa1 {[%clk 0:01:39.3]} 30. Rxa1
{[%clk 0:02:05.1]} 30... Bxf3 {[%clk 0:01:40.1]} 31. gxf3 {[%clk 0:02:02.9]}
31... Nd2 {[%clk 0:01:30.8]} 32. Ra3 {[%clk 0:01:58.7]} 32... Rd5 {[%clk
0:01:23.4]} 33. Kg2 {[%clk 0:01:55.4]} 33... Rd4 {[%clk 0:01:21.3]} 34. Ra8+
{[%clk 0:01:51.9]} 34... Kh7 {[%clk 0:01:21.1]} 35. Ra2 {[%clk 0:01:49.3]} 35...
Nc4 {[%clk 0:01:18.1]} 36. Ra7 {[%clk 0:01:48]} 36... Kg6 {[%clk 0:01:13]} 37.
Rc7 {[%clk 0:01:43.5]} 37... Ne5 {[%clk 0:01:12.4]} 38. Na6 {[%clk 0:01:40.3]}
38... Kf6 {[%clk 0:00:52.6]} 39. Rc8 {[%clk 0:01:36.9]} 39... Ke6 {[%clk
0:00:48.5]} 40. Nb8 {[%clk 0:01:33.2]} 40... Rxb4 {[%clk 0:00:36.6]} 41. Re8+
{[%clk 0:01:32]} 41... Kd6 {[%clk 0:00:21.9]} 42. Rxe5 {[%clk 0:01:32.9]} 42...
Kxe5 {[%clk 0:00:22.2]} 43. Nxc6+ {[%clk 0:01:31.9]} 43... Kd5 {[%clk
0:00:19.6]} 44. Nxb4+ {[%clk 0:01:32.8]} 44... Kc4 {[%clk 0:00:20]} 45. Nc2
{[%clk 0:01:31]} 45... Kc3 {[%clk 0:00:19.1]} 46. Ne3 {[%clk 0:01:28.9]} 46...
b4 {[%clk 0:00:17.9]} 47. f4 {[%clk 0:01:27.3]} 47... b3 {[%clk 0:00:17.9]} 48.
Kf3 {[%clk 0:01:26.6]} 48... Kd2 {[%clk 0:00:12.6]} 49. f5 {[%clk 0:01:25.2]}
49... b2 {[%clk 0:00:09.4]} 50. Nc4+ {[%clk 0:01:23.9]} 50... Kc3 {[%clk
0:00:07.2]} 51. Nxb2 {[%clk 0:01:21]} 51... Kxb2 {[%clk 0:00:08.1]} 52. Ke4
{[%clk 0:01:21.7]} 52... Kc3 {[%clk 0:00:08.2]} 53. f6 {[%clk 0:01:19.6]} 53...
g5 {[%clk 0:00:02.4]} 54. Kd5 {[%clk 0:01:18.6]} 54... Kd3 {[%clk 0:00:02.4]}
55. Kd6 {[%clk 0:01:17]} 55... Ke4 {[%clk 0:00:01.5]} 56. Ke7 {[%clk 0:01:17.9]}
1-0

[Event "Early-Titled-Tuesday-Blitz-April-16-2024"]
[Site "Chess.com"]
[Date "2024.04.16"]
[Round "5"]
[White "NewYearGirl"]
[Black "YegoryoCh"]
[Result "0-1"]
[WhiteElo "2368"]
[BlackElo "2573"]
[TimeControl "180+1"]
[EndTime "8:56:03 PDT"]
[Termination "YegoryoCh won by resignation"]

1. e4 {[%clk 0:03:00.9]} 1... e5 {[%clk 0:02:59.8]} 2. Nf3 {[%clk 0:03:00.8]}
2... Nc6 {[%clk 0:03:00.3]} 3. Bc4 {[%clk 0:03:00.3]} 3... Nf6 {[%clk
0:03:00.2]} 4. d4 {[%clk 0:03:00.3]} 4... exd4 {[%clk 0:02:59]} 5. Ng5 {[%clk
0:03:00.8]} 5... Ne5 {[%clk 0:02:56.1]} 6. Bb3 {[%clk 0:02:59]} 6... h6 {[%clk
0:02:36.6]} 7. f4 {[%clk 0:02:59]} 7... hxg5 {[%clk 0:02:31.9]} 8. fxe5 {[%clk
0:02:59.2]} 8... Nxe4 {[%clk 0:02:26.6]} 9. Bd5 {[%clk 0:02:56.6]} 9... Nc5
{[%clk 0:02:23.9]} 10. O-O {[%clk 0:02:56.8]} 10... Ne6 {[%clk 0:02:24.1]} 11.
Qf3 {[%clk 0:02:56.6]} 11... Qe7 {[%clk 0:02:24.5]} 12. Nd2 {[%clk 0:02:55.1]}
12... c6 {[%clk 0:02:18]} 13. Ne4 {[%clk 0:02:55.4]} 13... Rh4 {[%clk
0:01:18.4]} 14. Bxe6 {[%clk 0:02:33.8]} 14... Qxe6 {[%clk 0:01:09.3]} 15. Nd6+
{[%clk 0:02:30.7]} 15... Bxd6 {[%clk 0:01:03.5]} 16. exd6 {[%clk 0:02:30.9]}
16... f6 {[%clk 0:00:52.9]} 17. Bxg5 {[%clk 0:02:26.7]} 17... Re4 {[%clk
0:00:45.6]} 18. Qh5+ {[%clk 0:02:10.8]} 18... Kf8 {[%clk 0:00:45.5]} 19. Bxf6
{[%clk 0:02:00.2]} 19... Kg8 {[%clk 0:00:25.1]} 20. Qg6 {[%clk 0:01:48.2]} 20...
Rg4 {[%clk 0:00:24.7]} 21. Qh5 {[%clk 0:01:38.6]} 21... Qe3+ {[%clk 0:00:06.2]}
22. Kh1 {[%clk 0:01:35.4]} 22... Qe4 {[%clk 0:00:06.2]} 23. Rf2 {[%clk
0:01:21.8]} 23... gxf6 {[%clk 0:00:05.7]} 24. Raf1 {[%clk 0:01:08.2]} 24... b6
{[%clk 0:00:03.9]} 25. Qh3 {[%clk 0:01:06]} 25... Ba6 {[%clk 0:00:03.1]} 26. Rg1
{[%clk 0:01:03.8]} 26... Rf8 {[%clk 0:00:03.2]} 27. Qh6 {[%clk 0:00:58.5]} 27...
Rg7 {[%clk 0:00:03.5]} 28. Rf3 {[%clk 0:00:55.1]} 28... Be2 {[%clk 0:00:02.5]}
29. Rh3 {[%clk 0:00:54.8]} 29... d3 {[%clk 0:00:01.1]} 30. cxd3 {[%clk
0:00:50.7]} 30... Bxd3 {[%clk 0:00:02]} 31. Rf3 {[%clk 0:00:40.6]} 31... Qg6
{[%clk 0:00:01.4]} 32. Qd2 {[%clk 0:00:40.1]} 32... Be4 {[%clk 0:00:01.7]} 33.
Rg3 {[%clk 0:00:39.9]} 33... Qxg3 {[%clk 0:00:02]} 34. Qe2 {[%clk 0:00:25.4]}
34... Bxg2+ {[%clk 0:00:02.3]} 35. Rxg2 {[%clk 0:00:26]} 35... Qxg2+ {[%clk
0:00:02.8]} 36. Qxg2 {[%clk 0:00:26.5]} 36... Rxg2 {[%clk 0:00:03.7]} 37. Kxg2
{[%clk 0:00:27.4]} 37... Re8 {[%clk 0:00:04.4]} 38. Kf3 {[%clk 0:00:28.3]} 38...
Re6 {[%clk 0:00:05.3]} 39. Kf4 {[%clk 0:00:29]} 39... Rxd6 {[%clk 0:00:06.2]}
0-1

[Event "Early-Titled-Tuesday-Blitz-April-16-2024"]
[Site "Chess.com"]
[Date "2024.04.16"]
[Round "5"]
[White "Egor_Koshulyan"]
[Black "LeoLV10"]
[Result "1-0"]
[WhiteElo "2727"]
[BlackElo "2508"]
[TimeControl "180+1"]
[EndTime "8:56:06 PDT"]
[Termination "Egor_Koshulyan won on time"]

1. f4 {[%clk 0:03:00.9]} 1... d5 {[%clk 0:02:58.1]} 2. Nf3 {[%clk 0:03:01.5]}
2... Nf6 {[%clk 0:02:58.6]} 3. g3 {[%clk 0:03:02.1]} 3... c5 {[%clk 0:02:58.7]}
4. Bg2 {[%clk 0:03:02.7]} 4... Nc6 {[%clk 0:02:59.4]} 5. O-O {[%clk 0:03:03.4]}
5... g6 {[%clk 0:02:59.9]} 6. d3 {[%clk 0:03:04]} 6... Bg7 {[%clk 0:03:00.5]} 7.
Nc3 {[%clk 0:03:04.3]} 7... O-O {[%clk 0:03:01.1]} 8. e4 {[%clk 0:03:04.8]} 8...
d4 {[%clk 0:02:56.7]} 9. Ne2 {[%clk 0:03:05.1]} 9... a6 {[%clk 0:02:54.3]} 10.
h3 {[%clk 0:03:01.2]} 10... Rb8 {[%clk 0:02:51.8]} 11. g4 {[%clk 0:03:01.4]}
11... e6 {[%clk 0:02:48]} 12. Ng3 {[%clk 0:02:46.5]} 12... Nd7 {[%clk
0:02:43.7]} 13. h4 {[%clk 0:02:41.5]} 13... e5 {[%clk 0:02:38.4]} 14. f5 {[%clk
0:02:40.8]} 14... b5 {[%clk 0:02:28.6]} 15. h5 {[%clk 0:02:25.3]} 15... c4
{[%clk 0:02:25.2]} 16. g5 {[%clk 0:02:25]} 16... Re8 {[%clk 0:02:15.1]} 17. Nh4
{[%clk 0:02:10.2]} 17... cxd3 {[%clk 0:01:31.6]} 18. hxg6 {[%clk 0:02:05.5]}
18... hxg6 {[%clk 0:01:22.8]} 19. fxg6 {[%clk 0:01:58]} 19... fxg6 {[%clk
0:01:17.9]} 20. Nxg6 {[%clk 0:01:58.4]} 20... Nf8 {[%clk 0:01:03.2]} 21. Nxf8
{[%clk 0:01:38]} 21... Rxf8 {[%clk 0:01:02.7]} 22. cxd3 {[%clk 0:01:38.7]} 22...
Be6 {[%clk 0:00:53.4]} 23. Qh5 {[%clk 0:01:35]} 23... Rxf1+ {[%clk 0:00:41.9]}
24. Bxf1 {[%clk 0:01:35.9]} 24... Qd7 {[%clk 0:00:40.1]} 25. g6 {[%clk
0:01:32.5]} 25... Bg4 {[%clk 0:00:30.7]} 26. Qh7+ {[%clk 0:01:32.1]} 26... Kf8
{[%clk 0:00:31.1]} 27. Bh6 {[%clk 0:01:32.5]} 27... Bxh6 {[%clk 0:00:30.3]} 28.
Qh8+ {[%clk 0:01:28.6]} 28... Ke7 {[%clk 0:00:27.5]} 29. Qxh6 {[%clk 0:01:29.1]}
29... Rg8 {[%clk 0:00:23.1]} 30. Qh7+ {[%clk 0:01:20.7]} 30... Kf8 {[%clk
0:00:22.6]} 31. Be2 {[%clk 0:01:13.2]} 31... Be6 {[%clk 0:00:13.8]} 32. Rf1+
{[%clk 0:01:05.1]} 32... Ke8 {[%clk 0:00:14.1]} 33. Bh5 {[%clk 0:01:05.6]} 33...
Qg7 {[%clk 0:00:11.4]} 34. Rf7 {[%clk 0:00:51.3]} 34... Bxf7 {[%clk 0:00:05.9]}
35. gxf7+ {[%clk 0:00:51.4]} 35... Kf8 {[%clk 0:00:06.5]} 36. fxg8=Q+ {[%clk
0:00:50.5]} 36... Qxg8 {[%clk 0:00:06.9]} 37. Qf5+ {[%clk 0:00:42.2]} 37... Ke7
{[%clk 0:00:05.2]} 38. Kg2 {[%clk 0:00:42.8]} 38... Qxa2 {[%clk 0:00:04.1]} 39.
Qg5+ {[%clk 0:00:42.6]} 39... Kd6 {[%clk 0:00:03.6]} 40. Nf5+ {[%clk 0:00:42.9]}
40... Kc5 {[%clk 0:00:03.8]} 41. Qd2 {[%clk 0:00:42.6]} 41... Nb4 {[%clk
0:00:01]} 42. Be2 {[%clk 0:00:37.5]} 1-0

[Event "Early-Titled-Tuesday-Blitz-April-16-2024"]
[Site "Chess.com"]
[Date "2024.04.16"]
[Round "5"]
[White "Grossboss19"]
[Black "cthulhuuu"]
[Result "1-0"]
[WhiteElo "2592"]
[BlackElo "2430"]
[TimeControl "180+1"]
[EndTime "8:56:07 PDT"]
[Termination "Grossboss19 won by checkmate"]

1. d4 {[%clk 0:02:48.5]} 1... Nf6 {[%clk 0:02:59.4]} 2. Nc3 {[%clk 0:02:46.3]}
2... d5 {[%clk 0:02:59.5]} 3. Bg5 {[%clk 0:02:45.7]} 3... c6 {[%clk 0:02:57.1]}
4. e3 {[%clk 0:02:45.6]} 4... Qb6 {[%clk 0:02:57.2]} 5. b3 {[%clk 0:02:43.1]}
5... Nbd7 {[%clk 0:02:55.1]} 6. Bd3 {[%clk 0:02:41.9]} 6... e5 {[%clk
0:02:54.7]} 7. Bxf6 {[%clk 0:02:40.1]} 7... gxf6 {[%clk 0:02:48.1]} 8. a3 {[%clk
0:02:34.6]} 8... exd4 {[%clk 0:01:56.6]} 9. exd4 {[%clk 0:02:28.7]} 9... Qxd4
{[%clk 0:01:56.6]} 10. Nge2 {[%clk 0:02:27.2]} 10... Qe5 {[%clk 0:01:52.2]} 11.
O-O {[%clk 0:02:26.4]} 11... Bd6 {[%clk 0:01:49.9]} 12. f4 {[%clk 0:02:17.9]}
12... Qe3+ {[%clk 0:01:48.4]} 13. Kh1 {[%clk 0:02:17.4]} 13... Nc5 {[%clk
0:01:41.3]} 14. Re1 {[%clk 0:01:52.1]} 14... Nxd3 {[%clk 0:01:38.4]} 15. cxd3
{[%clk 0:01:52.2]} 15... Kf8 {[%clk 0:01:37.3]} 16. Rf1 {[%clk 0:01:42.7]} 16...
Bg4 {[%clk 0:01:04.3]} 17. h3 {[%clk 0:01:40.7]} 17... Bh5 {[%clk 0:01:04.5]}
18. Ra2 {[%clk 0:01:32]} 18... Re8 {[%clk 0:00:58.3]} 19. Qe1 {[%clk 0:01:28]}
19... Qxd3 {[%clk 0:00:38.5]} 20. Rd2 {[%clk 0:01:15.9]} 20... Qe3 {[%clk
0:00:30.5]} 21. Rc2 {[%clk 0:01:13]} 21... Rg8 {[%clk 0:00:24.5]} 22. Qh4 {[%clk
0:01:09.1]} 22... Bxe2 {[%clk 0:00:23.6]} 23. Rxe2 {[%clk 0:01:07.9]} 23... Qxe2
{[%clk 0:00:10.6]} 24. Qh6+ {[%clk 0:01:02.7]} 24... Rg7 {[%clk 0:00:10.4]} 25.
Nxe2 {[%clk 0:01:02.9]} 25... Rxe2 {[%clk 0:00:10.8]} 26. g4 {[%clk 0:00:58.2]}
26... Kg8 {[%clk 0:00:10.8]} 27. Qxf6 {[%clk 0:00:55.6]} 27... Be7 {[%clk
0:00:11.1]} 28. Qf5 {[%clk 0:00:55.7]} 28... Re6 {[%clk 0:00:09]} 29. g5 {[%clk
0:00:52.9]} 29... h6 {[%clk 0:00:08.2]} 30. h4 {[%clk 0:00:52.6]} 30... Bxa3
{[%clk 0:00:07.8]} 31. Ra1 {[%clk 0:00:50.1]} 31... Bc5 {[%clk 0:00:07.6]} 32.
b4 {[%clk 0:00:47.3]} 32... Bb6 {[%clk 0:00:06.9]} 33. Qg4 {[%clk 0:00:40.9]}
33... hxg5 {[%clk 0:00:07.1]} 34. hxg5 {[%clk 0:00:39.1]} 34... Rh7+ {[%clk
0:00:07]} 35. Kg2 {[%clk 0:00:39.1]} 35... Re3 {[%clk 0:00:05.1]} 36. f5 {[%clk
0:00:33.8]} 36... Rg7 {[%clk 0:00:04.4]} 37. f6 {[%clk 0:00:31.3]} 37... Rg6
{[%clk 0:00:01.6]} 38. Qc8+ {[%clk 0:00:30.4]} 38... Kh7 {[%clk 0:00:02]} 39.
Rh1+ {[%clk 0:00:31]} 39... Rh6 {[%clk 0:00:01.9]} 40. Rxh6# {[%clk 0:00:28.5]}
1-0

[Event "Early-Titled-Tuesday-Blitz-April-16-2024"]
[Site "Chess.com"]
[Date "2024.04.16"]
[Round "5"]
[White "mariangie523"]
[Black "abc_xyz4744"]
[Result "1-0"]
[WhiteElo "2161"]
[BlackElo "2385"]
[TimeControl "180+1"]
[EndTime "8:56:12 PDT"]
[Termination "mariangie523 won on time"]

1. e4 {[%clk 0:03:00.9]} 1... c5 {[%clk 0:02:57.6]} 2. Nf3 {[%clk 0:02:58.3]}
2... g6 {[%clk 0:02:55.8]} 3. d4 {[%clk 0:02:55.8]} 3... cxd4 {[%clk 0:02:56.7]}
4. Nxd4 {[%clk 0:02:56.2]} 4... Bg7 {[%clk 0:02:51.9]} 5. c4 {[%clk 0:02:50.5]}
5... Nc6 {[%clk 0:02:49.2]} 6. Be3 {[%clk 0:02:45.8]} 6... Nf6 {[%clk
0:02:41.6]} 7. Nc3 {[%clk 0:02:34.1]} 7... O-O {[%clk 0:02:37.7]} 8. Qd2 {[%clk
0:02:32.5]} 8... Ng4 {[%clk 0:02:30]} 9. Nxc6 {[%clk 0:02:29.2]} 9... bxc6
{[%clk 0:02:20.1]} 10. Bd4 {[%clk 0:02:22.6]} 10... Bxd4 {[%clk 0:01:26.2]} 11.
Qxd4 {[%clk 0:02:21.2]} 11... Qb6 {[%clk 0:01:26.9]} 12. Qxb6 {[%clk 0:02:13.7]}
12... axb6 {[%clk 0:01:27.8]} 13. Be2 {[%clk 0:02:13.3]} 13... d6 {[%clk
0:01:19.3]} 14. O-O {[%clk 0:01:51.2]} 14... Be6 {[%clk 0:00:51.6]} 15. b3
{[%clk 0:01:47.4]} 15... f5 {[%clk 0:00:35.3]} 16. h3 {[%clk 0:01:19.9]} 16...
Nf6 {[%clk 0:00:30.6]} 17. exf5 {[%clk 0:01:17]} 17... gxf5 {[%clk 0:00:30.3]}
18. Bf3 {[%clk 0:01:15.8]} 18... d5 {[%clk 0:00:17.9]} 19. Rfe1 {[%clk
0:01:12.9]} 19... Kf7 {[%clk 0:00:17.6]} 20. cxd5 {[%clk 0:00:47.6]} 20... cxd5
{[%clk 0:00:17.7]} 21. Nb5 {[%clk 0:00:45]} 21... Rac8 {[%clk 0:00:17.4]} 22.
Nd4 {[%clk 0:00:43.8]} 22... Bd7 {[%clk 0:00:17.5]} 23. Rad1 {[%clk 0:00:40.2]}
23... Ne4 {[%clk 0:00:14.5]} 24. Bh5+ {[%clk 0:00:37]} 24... Kf6 {[%clk
0:00:13]} 25. Bf3 {[%clk 0:00:19.6]} 25... e5 {[%clk 0:00:11.5]} 26. Ne2 {[%clk
0:00:16.6]} 26... Be6 {[%clk 0:00:08.8]} 27. Bxe4 {[%clk 0:00:15.3]} 27... fxe4
{[%clk 0:00:08]} 28. Ng3 {[%clk 0:00:13.9]} 28... Rg8 {[%clk 0:00:07.8]} 29.
Nh5+ {[%clk 0:00:13.2]} 29... Ke7 {[%clk 0:00:06.6]} 30. Kh2 {[%clk 0:00:12.4]}
30... Rc2 {[%clk 0:00:05.9]} 31. a4 {[%clk 0:00:09.7]} 31... Rxf2 {[%clk
0:00:03.4]} 32. Rg1 {[%clk 0:00:10.3]} 32... e3 {[%clk 0:00:03.7]} 33. Rde1
{[%clk 0:00:10]} 1-0